fUSD/lending_fUSD_20260226
["ID","MTS","AMOUNT","RATE_DAILY","PERIOD"]
[406678013,1772069433643,-500.0,8.274e-05,2]
[406678014,1772069433654,-500.0,8.274e-05,2]
[406678015,1772069433663,-163.30399252,8.274e-05,2]
[406678016,1772069433673,-150.0,8.274e-05,2]
[406678017,1772069433684,-153.81120609,8.274e-05,2]
[406678018,1772069433694,-534.7716115,8.274e-05,2]
[406678019,1772069433704,-500.0,8.274e-05,2]
[406678020,1772069433713,-150.0,8.274e-05,2]
[406678021,1772069433723,-151.75808628,8.274e-05,2]
[406678022,1772069433732,-500.0,8.274e-05,2]
[406678023,1772069433741,-278.08254747,8.274e-05,2]
[406678024,1772069433751,-150.0,8.274e-05,2]
[406678025,1772069433760,-500.0,8.274e-05,2]
[406678026,1772069433770,-500.0,8.274e-05,2]
[406678027,1772069433779,-150.0,8.274e-05,2]
[406678028,1772069433789,-523.07535699,8.274e-05,2]
[406678029,1772069433799,-500.0,8.274e-05,2]
[406678030,1772069433808,-500.0,8.274e-05,2]
[406678031,1772069433818,-500.0,8.274e-05,2]
[406678032,1772069433827,-18179.7173335,8.324e-05,2]
[406678033,1772069433836,-88351.0361221,8.324e-05,2]
[406678034,1772069433846,-500.0,8.329e-05,2]
[406678035,1772069433855,-150.0,8.329e-05,2]
[406678036,1772069433865,-150.0,8.329e-05,2]
[406678037,1772069433875,-500.0,8.329e-05,2]
[406678038,1772069433885,-205.56107838,8.329e-05,2]
[406678039,1772069433895,-500.0,8.329e-05,2]
[406678040,1772069433904,-150.0,8.329e-05,2]
[406678041,1772069434076,-500.0,8.329e-05,2]
[406678042,1772069434087,-150.0,8.329e-05,2]
[406678043,1772069434096,-500.0,8.329e-05,2]
[406678044,1772069434106,-206.62255583,8.329e-05,2]
[406678045,1772069434115,-500.0,8.329e-05,2]
[406678046,1772069434124,-500.0,8.329e-05,2]
[406678047,1772069434133,-150.0,8.329e-05,2]
[406678048,1772069434143,-500.0,8.329e-05,2]
[406678049,1772069434152,-500.0,8.329e-05,2]
[406678050,1772069434162,-551.37506929,8.329e-05,2]
[406678051,1772069434171,-3005.5727971,8.343e-05,2]
[406678052,1772069434180,-3155.7489891,8.364e-05,2]
[406678053,1772069434189,-1281.76,8.367e-05,2]
[406678054,1772069434198,-500.0,8.383e-05,2]
[406678055,1772069434208,-150.0,8.383e-05,2]
[406678056,1772069434218,-150.0,8.383e-05,2]
[406678057,1772069434228,-287.84538177,8.383e-05,2]
[406678058,1772069434237,-500.0,8.383e-05,2]
[406678059,1772069434246,-150.0,8.383e-05,2]
[406678060,1772069434256,-508.1472797,8.383e-05,2]
[406678061,1772069434265,-224.75541068,8.383e-05,2]
[406678062,1772069434275,-500.0,8.383e-05,2]
[406678063,1772069434284,-500.0,8.383e-05,2]
[406678064,1772069434294,-500.0,8.383e-05,2]
[406678065,1772069434303,-255.72035699,8.383e-05,2]
[406678066,1772069434313,-500.0,8.383e-05,2]
[406678067,1772069434326,-155.27499116,8.383e-05,2]
[406678068,1772069434335,-303.0,8.386e-05,2]
[406678069,1772069434344,-13135.2009343,8.4e-05,2]
[406678070,1772069434354,-6446.9644058,8.407e-05,2]
[406678071,1772069434363,-1285.297866,8.436e-05,2]
[406678072,1772069434373,-260.72381013,8.438e-05,2]
[406678073,1772069434382,-150.0,8.438e-05,2]
[406678074,1772069434392,-154.03407585,8.438e-05,2]
[406678075,1772069434401,-500.0,8.438e-05,2]
[406678076,1772069434411,-150.0,8.438e-05,2]
[406678077,1772069434421,-500.0,8.438e-05,2]
[406678078,1772069434431,-500.0,8.438e-05,2]
[406678079,1772069434440,-500.0,8.438e-05,2]
[406678080,1772069434449,-211.66241719,8.438e-05,2]
[406678081,1772069434459,-1600.0,8.475e-05,2]
[406678082,1772069434468,-150.0,8.493e-05,2]
[406678083,1772069434478,-539.51706489,8.493e-05,2]
[406678084,1772069434488,-224.51537802,8.493e-05,2]
[406678085,1772069434497,-500.0,8.493e-05,2]
[406678086,1772069434506,-500.0,8.493e-05,2]
[406678087,1772069434515,-500.0,8.493e-05,2]
[406678088,1772069434525,-500.0,8.493e-05,2]
[406678089,1772069434534,-96465.6646038,8.496e-05,2]
[406678090,1772069434543,-500.0,8.548e-05,2]
[406678091,1772069434553,-500.0,8.548e-05,2]
[406678092,1772069434563,-500.0,8.548e-05,2]
[406678093,1772069434574,-152.85760327,8.548e-05,2]
[406678094,1772069434584,-1281.76,8.57e-05,2]
[406678095,1772069434595,-500.0,8.603e-05,2]
[406678096,1772069434615,-500.0,8.603e-05,2]
[406678097,1772069434625,-500.0,8.603e-05,2]
[406678098,1772069434634,-500.0,8.657e-05,2]
[406678099,1772069434644,-500.0,8.657e-05,2]
[406678100,1772069434653,-500.0,8.712e-05,2]
[406678101,1772069434663,-500.0,8.712e-05,2]
[406678102,1772069434672,-3292.0,8.726e-05,2]
[406678103,1772069434683,-406.48633111,8.767e-05,2]
[406678104,1772069434692,-500.0,8.767e-05,2]
[406678105,1772069434702,-500.0,8.767e-05,2]
[406678106,1772069434711,-152.22,8.806e-05,2]
[406678107,1772069434721,-500.0,8.822e-05,2]
[406678108,1772069434731,-2259.0,8.849e-05,2]
[406678109,1772069434740,-500.0,8.877e-05,2]
[406678110,1772069434749,-500.0,8.931e-05,2]
[406678111,1772069434759,-14487.75185022,8.986e-05,2]
[406678112,1772069434768,-232.0,8.986e-05,2]
[406678113,1772069434781,-6784.7,9.096e-05,2]
[406678114,1772069434790,-3005.5727971,9.154e-05,2]
[406678115,1772069434800,-18179.7173335,9.199e-05,2]
[406678116,1772069434809,-83146.54305169,9.199e-05,2]
[406678117,1772069434824,-5204.49307041,9.199e-05,2]
[406678118,1772069434834,-433.231877,9.199e-05,2]
[406678119,1772069434844,-433.231877,9.199e-05,2]
[406678120,1772069434853,-433.231877,9.199e-05,2]
[406678121,1772069434862,-433.231877,9.199e-05,2]
[406678122,1772069434872,-282.618216,9.199e-05,2]
[406678123,1772069434881,-282.618216,9.199e-05,2]
[406678124,1772069434890,-282.618216,9.199e-05,2]
[406678125,1772069434900,-282.618216,9.199e-05,2]
[406678126,1772069434913,-151.0,9.199e-05,2]
[406678127,1772069434930,-151.0,9.199e-05,2]
[406678128,1772069434944,-1500.0,9.221e-05,2]
[406678129,1772069434961,-1000.0,9.247e-05,2]
[406678130,1772069434979,-3155.7489891,9.256e-05,2]
[406678131,1772069434996,-1600.0,9.323e-05,2]
[406678132,1772069435011,-13135.2009343,9.33e-05,2]
[406678133,1772069435023,-151.0,9.359e-05,2]
[406678134,1772069435040,-151.0,9.359e-05,2]
[406678135,1772069435056,-185.60108,9.359e-05,2]
[406678136,1772069435074,-6446.9644058,9.365e-05,2]
[406678137,1772069435090,-152.22,9.393e-05,2]
[406678138,1772069435107,-1285.297866,9.423e-05,2]
[406678139,1772069435124,-9770.86,9.509e-05,2]
[406678140,1772069435139,-433.231877,9.543e-05,2]
[406678141,1772069435157,-433.231877,9.543e-05,2]
[406678142,1772069435172,-433.231877,9.543e-05,2]
[406678143,1772069435188,-433.231877,9.543e-05,2]
[406678144,1772069435200,-282.618216,9.543e-05,2]
[406678145,1772069435217,-282.618216,9.543e-05,2]
[406678146,1772069435231,-282.618216,9.543e-05,2]
[406678147,1772069435243,-282.618216,9.543e-05,2]
[406678148,1772069435259,-151.0,9.543e-05,2]
[406678149,1772069435272,-67734.41059058,9.543e-05,2]
[406678150,1772069435287,-16809.27219528,9.543e-05,2]
[406678151,1772069435318,-391.88,9.543e-05,2]
[406678152,1772069438053,-580.23789574,9.543e-05,2]
[406678153,1772069438372,-10949.8639222,9.543e-05,2]
[406678154,1772069438387,-151.0,9.589e-05,2]
[406678155,1772069438401,-151.0,9.589e-05,2]
[406678156,1772069438415,-2056.34573634,9.598e-05,2]
[406678157,1772069438431,-2552.65426366,9.598e-05,2]
[406678158,1772069438445,-166.66,9.686e-05,2]
[406678159,1772069438458,-3005.5727971,9.966e-05,2]
[406678160,1772069438475,-152.22,9.98e-05,2]
[406678161,1772069438490,-374.53222709,9.999e-05,2]
[406678162,1772069438500,-627.09833634,9.999e-05,2]
[406678163,1772069438510,-500.0,9.999e-05,2]
[406678164,1772069438519,-500.0,9.999e-05,2]
[406678165,1772069438529,-500.0,9.999e-05,2]
[406678166,1772069438539,-500.0,9.999e-05,2]
[406678167,1772069438738,-500.0,9.999e-05,2]
[406678168,1772069438769,-202.10806292,9.999e-05,2]
[406678169,1772069438781,-500.0,9.999e-05,2]
[406678170,1772069438790,-500.0,9.999e-05,2]
[406678172,1772069438800,-450.0,9.999e-05,2]
[406678174,1772069438809,-151.0,0.0001,2]
[406678176,1772069438819,-9200.0,0.0001,3]
[406678178,1772069438828,-151.0,0.0001,2]
[406678179,1772069438837,-151.0,0.0001,2]
[406678181,1772069438850,-151.0,0.0001,2]
[406678183,1772069438859,-151.0,0.0001,2]
[406678185,1772069438870,-548.07671331,0.0001,2]
[406678187,1772069438881,-151.0,0.0001,2]
[406678189,1772069438891,-151.0,0.0001,2]
[406678191,1772069438902,-151.0,0.0001,2]
[406678193,1772069438918,-151.0,0.0001,2]
[406678195,1772069438932,-151.0,0.0001,2]
[406678197,1772069438943,-151.0,0.0001,2]
[406678199,1772069438955,-151.0,0.0001,2]
[406678201,1772069438967,-151.0,0.0001,2]
[406678203,1772069438977,-151.0,0.0001,2]
[406678205,1772069438988,-151.0,0.0001,2]
[406678206,1772069438999,-151.0,0.0001,2]
[406678207,1772069439010,-151.0,0.0001,2]
[406678208,1772069439022,-151.0,0.0001,2]
[406678210,1772069439040,-151.0,0.0001,2]
[406678212,1772069439051,-151.0,0.0001,2]
[406678214,1772069439063,-151.0,0.0001,2]
[406678215,1772069439073,-151.0,0.0001,2]
[406678217,1772069439086,-151.0,0.0001,2]
[406678219,1772069439098,-151.0,0.0001,2]
[406678221,1772069439109,-151.0,0.0001,2]
[406678223,1772069439126,-151.0,0.0001,2]
[406678225,1772069439136,-151.0,0.0001,2]
[406678227,1772069439146,-151.0,0.0001,2]
[406678229,1772069439156,-151.0,0.0001,2]
[406678231,1772069439166,-151.0,0.0001,2]
[406678233,1772069439177,-151.0,0.0001,2]
[406678235,1772069439187,-151.0,0.0001,2]
[406678237,1772069439198,-151.0,0.0001,2]
[406678239,1772069439209,-151.0,0.0001,2]
[406678240,1772069439219,-153.74158134,0.0001,2]
[406678241,1772069439229,-500.0,0.0001,2]
[406678242,1772069439239,-500.0,0.0001,2]
[406678243,1772069439248,-500.0,0.0001,2]
[406678244,1772069439258,-500.0,0.0001,2]
[406678245,1772069439268,-24737.0,0.0001,2]
[406678246,1772069439282,-166.66,0.00010006,2]
[406678247,1772069439292,-263.614802,0.00010073,2]
[406678248,1772069439303,-18179.7173335,0.00010073,2]
[406678249,1772069439313,-88351.0361221,0.00010073,2]
[406678250,1772069439324,-3155.7489891,0.00010149,2]
[406678251,1772069439334,-1600.0,0.0001017,2]
[406678252,1772069439344,-13135.2009343,0.00010259,2]
[406678253,1772069439356,-1000.0,0.00010274,2]
[406678254,1772069439366,-151.0,0.00010274,2]
[406678255,1772069439376,-184.593147,0.00010274,2]
[406678256,1772069439387,-433.231877,0.00010274,2]
[406678257,1772069439397,-433.231877,0.00010274,2]
[406678258,1772069439407,-433.231877,0.00010274,2]
[406678259,1772069439417,-433.231877,0.00010274,2]
[406678260,1772069439428,-282.618216,0.00010274,2]
[406678261,1772069439438,-282.618216,0.00010274,2]
[406678262,1772069439450,-282.618216,0.00010274,2]
[406678263,1772069439460,-282.618216,0.00010274,2]
[406678264,1772069439469,-151.0,0.00010274,2]
[406678265,1772069439480,-500.0,0.000103,2]
[406678266,1772069439489,-500.0,0.000103,2]
[406678267,1772069439499,-500.0,0.000103,2]
[406678268,1772069439509,-704.59409661,0.000103,2]
[406678269,1772069439519,-500.0,0.000103,2]
[406678270,1772069439531,-500.0,0.000103,2]
[406678271,1772069439540,-6446.9644058,0.00010324,2]
[406678272,1772069439549,-166.66,0.00010325,2]
[406678273,1772069439559,-5532.0,0.000104,3]
[406678274,1772069439572,-1285.297866,0.00010411,2]
[406678275,1772069439581,-306.45098113,0.00010548,2]
[406678276,1772069439591,-6453.0,0.00010558,2]
[406678277,1772069439600,-152.22,0.00010568,2]
[406678278,1772069439610,-96465.6646038,0.0001059,2]
[406678279,1772069439621,-166.66,0.00010645,2]
[406678280,1772069439631,-5532.0,0.000108,5]
[406678281,1772069439642,-628.31457258,0.00010834,2]
[406678282,1772069439652,-1000.0,0.000109,3]
[406678283,1772069439661,-4998.8869285,0.000109,2]
[406678284,1772069439671,-4998.88692849,0.000109,2]
[406678285,1772069439680,-4998.88692849,0.000109,2]
[406678286,1772069439690,-4809.0,0.00010932,2]
[406678287,1772069439701,-14922.25,0.00010959,2]
[406678288,1772069439711,-150.0,0.00010959,2]
[406678289,1772069439721,-151.0,0.00010959,2]
[406678290,1772069439731,-166.66,0.00010959,2]
[406678291,1772069439741,-166.66,0.00010965,2]
[406678292,1772069439751,-166.66,0.00011068,2]
[406678293,1772069439760,-3829.31180515,0.00011099,2]
[406678294,1772069439770,-3829.31180515,0.00011099,2]
[406678295,1772069439781,-3829.31180515,0.00011099,2]
[406678296,1772069439799,-20486.55936388,0.00011099,2]
[406678297,1772069439810,-20486.55936383,0.00011099,2]
[406678298,1772069439820,-20486.55936383,0.00011099,2]
[406678299,1772069439829,-20486.55936383,0.00011099,2]
[406678300,1772069439838,-152.22,0.00011155,2]
[406678301,1772069439848,-166.66,0.00011178,2]
[406678302,1772069439860,-161.12,0.00011233,2]
[406678303,1772069439870,-5760.54,0.00011233,2]
[406678304,1772069439879,-3829.31180515,0.00011272,2]
[406678305,1772069439889,-9999.99,0.00011281,2]
[406678306,1772069439898,-166.66,0.00011285,2]
[406678307,1772069439908,-166.66,0.00011288,2]
[406678308,1772069439918,-1000.0,0.00011301,2]
[406678309,1772069439928,-166.66,0.00011397,2]
[406678310,1772069439938,-208.66,0.0001147,2]
[406678311,1772069439947,-166.66,0.00011507,2]
[406678312,1772069439957,-1317.0,0.00011614,2]
[406678313,1772069439967,-152.22,0.00011742,2]
[406678314,1772069439976,-4998.88692849,0.00011914,2]
[406678315,1772069439985,-20486.55936383,0.00012038,2]
[406678316,1772069439995,-433.231877,0.00012087,2]
[406678317,1772069440005,-433.231877,0.00012087,2]
[406678318,1772069440014,-433.231877,0.00012087,2]
[406678319,1772069440023,-433.231877,0.00012087,2]
[406678320,1772069440035,-1000.0,0.00012329,2]
[406678321,1772069440044,-152.22,0.00012329,2]
[406678322,1772069440054,-3829.31180515,0.00012377,2]
[406678323,1772069440063,-1000.0,0.00012435,2]
[406678324,1772069440073,-200.44,0.0001263,2]
[406678325,1772069440084,-151.0,0.0001289,2]
[406678326,1772069440094,-500.0,0.0001289,2]
[406678327,1772069440104,-500.0,0.0001289,2]
[406678328,1772069440114,-500.0,0.0001289,2]
[406678329,1772069440123,-500.0,0.0001289,2]
[406678330,1772069440132,-500.0,0.0001289,2]
[406678331,1772069440141,-500.0,0.0001289,2]
[406678332,1772069440151,-500.0,0.0001289,2]
[406678333,1772069440161,-500.0,0.0001289,2]
[406678334,1772069440171,-500.0,0.0001289,2]
[406678336,1772069440181,-500.0,0.0001289,2]
[406678338,1772069440190,-500.0,0.0001289,2]
[406678340,1772069440199,-500.0,0.0001289,2]
[406678341,1772069440209,-500.0,0.0001289,2]
[406678342,1772069440218,-500.0,0.0001289,2]
[406678343,1772069440228,-5627.87469091,0.00013,2]
[406678344,1772069440237,-563.76949661,0.00013,15]
[406678345,1772069440247,-20486.55936383,0.00013211,2]
[406678346,1772069440255,-282.618216,0.00013247,2]
[406678347,1772069440264,-282.618216,0.00013247,2]
[406678348,1772069440273,-282.618216,0.00013247,2]
[406678349,1772069440286,-282.618216,0.00013247,2]
[406678350,1772069440296,-4998.88692849,0.0001341,2]
[406678351,1772069440305,-3240.0,0.00013425,2]
[406678352,1772069440314,-151.0,0.00013425,2]
[406678353,1772069440323,-151.0,0.00013425,2]
[406678354,1772069440332,-151.0,0.00013425,2]
[406678355,1772069440341,-151.0,0.00013425,2]
[406678356,1772069440350,-175.036731,0.00013431,2]
[406678357,1772069440360,-3829.31180515,0.00013481,2]
[406678358,1772069440371,-2694.05694119,0.0001358,2]
[406678359,1772069440380,-243.848467,0.00013658,2]
[406678360,1772069440389,-500.0,0.00013698,2]
[406678361,1772069440399,-500.0,0.00013698,2]
[406678362,1772069440407,-500.0,0.00013698,2]
[406678363,1772069440417,-558.2352126,0.00013698,2]
[406678364,1772069440427,-500.0,0.00013698,2]
[406678365,1772069440436,-387.31685331,0.00013698,2]
[406678366,1772069440446,-500.0,0.00013698,2]
[406678367,1772069440455,-500.0,0.00013698,2]
[406678368,1772069440464,-500.0,0.00013698,2]
[406678369,1772069440473,-269.06190613,0.00013698,2]
[406678370,1772069440482,-500.0,0.00013698,2]
[406678371,1772069440491,-500.0,0.00013698,2]
[406678372,1772069440500,-500.0,0.00013698,2]
[406678373,1772069440509,-500.0,0.00013698,2]
[406678374,1772069440517,-400.83516378,0.00013698,2]
[406678375,1772069440528,-500.0,0.00013698,2]
[406678376,1772069440536,-500.0,0.00013698,2]
[406678377,1772069440545,-453.06341333,0.00013698,2]
[406678378,1772069440554,-500.0,0.00013698,2]
[406678379,1772069440563,-500.0,0.00013698,2]
[406678380,1772069440572,-500.0,0.00013698,2]
[406678381,1772069440584,-500.0,0.00013698,2]
[406678382,1772069440594,-500.0,0.00013698,2]
[406678383,1772069440603,-500.0,0.00013698,2]
[406678384,1772069440611,-500.0,0.00013698,2]
[406678385,1772069440621,-500.0,0.00013698,2]
[406678386,1772069440630,-500.0,0.00013698,2]
[406678387,1772069440639,-500.0,0.00013698,2]
[406678388,1772069440649,-500.0,0.00013698,2]
[406678389,1772069440660,-500.0,0.00013698,2]
[406678390,1772069440669,-500.0,0.00013698,2]
[406678391,1772069440677,-500.0,0.00013698,2]
[406678392,1772069440686,-500.0,0.00013698,2]
[406678393,1772069440695,-500.0,0.00013698,2]
[406678394,1772069440704,-500.0,0.00013698,2]
[406678395,1772069440714,-500.0,0.00013698,2]
[406678396,1772069440723,-500.0,0.00013698,2]
[406678397,1772069440733,-500.0,0.00013698,2]
[406678398,1772069440743,-7382.11,0.00013699,2]
[406678399,1772069440752,-200.0,0.00013699,2]
[406678400,1772069440761,-500.0,0.00013699,2]
[406678401,1772069440771,-163.76963508,0.00013699,2]
[406678402,1772069440783,-500.0,0.00013699,2]
[406678403,1772069440792,-500.0,0.00013699,2]
[406678404,1772069440802,-500.0,0.00013699,2]
[406678405,1772069440811,-500.0,0.00013699,2]
[406678406,1772069440820,-500.0,0.00013699,2]
[406678407,1772069440830,-500.0,0.00013699,2]
[406678408,1772069440840,-500.0,0.00013699,2]
[406678409,1772069440849,-500.0,0.00013699,2]
[406678410,1772069440859,-278.93340404,0.00013699,2]
[406678411,1772069440868,-163.99667352,0.00013699,2]
[406678412,1772069440878,-500.0,0.00013699,2]
[406678413,1772069440888,-500.0,0.00013699,2]
[406678414,1772069440897,-209.669428,0.00013699,2]
[406678415,1772069440907,-500.0,0.00013699,2]
[406678416,1772069440916,-500.0,0.00013699,2]
[406678417,1772069440925,-308.64663473,0.00013699,2]
[406678418,1772069440935,-500.0,0.00013699,2]
[406678419,1772069440945,-500.0,0.00013699,2]
[406678421,1772069440954,-620.36908714,0.00013699,2]
[406678423,1772069440964,-500.0,0.00013699,2]
[406678424,1772069440974,-500.0,0.00013699,2]
[406678425,1772069440983,-500.0,0.00013699,2]
[406678426,1772069440993,-337.75482183,0.00013699,2]
[406678427,1772069441002,-500.0,0.00013699,2]
[406678428,1772069441011,-500.0,0.00013699,2]
[406678429,1772069441021,-500.0,0.00013699,2]
[406678430,1772069441031,-500.0,0.00013699,2]
[406678431,1772069441040,-160.89687395,0.00013699,2]
[406678432,1772069441049,-500.0,0.00013699,2]
[406678433,1772069441058,-500.0,0.00013699,2]
[406678434,1772069441067,-160.16,0.00013699,2]
[406678435,1772069441076,-500.0,0.00013699,2]
[406678436,1772069441085,-161.12812418,0.00013699,2]
[406678437,1772069441095,-500.0,0.00013699,2]
[406678438,1772069441104,-500.0,0.00013699,2]
[406678439,1772069441113,-500.0,0.00013699,2]
[406678440,1772069441123,-500.0,0.00013699,2]
[406678441,1772069441132,-500.0,0.00013699,2]
[406678442,1772069441142,-500.0,0.00013699,2]
[406678443,1772069441151,-162.08719206,0.00013699,2]
[406678444,1772069441161,-500.0,0.00013699,2]
[406678445,1772069441170,-161.14332278,0.00013699,2]
[406678446,1772069441181,-500.0,0.00013699,2]
[406678447,1772069441192,-500.0,0.00013699,2]
[406678448,1772069441202,-500.0,0.00013699,2]
[406678449,1772069441211,-500.0,0.00013699,2]
[406678450,1772069441222,-500.0,0.00013699,2]
[406678451,1772069441233,-500.0,0.00013699,2]
[406678452,1772069441244,-500.0,0.00013699,2]
[406678453,1772069441253,-500.0,0.00013699,2]
[406678454,1772069441262,-500.0,0.00013699,2]
[406678455,1772069441272,-500.0,0.00013699,2]
[406678456,1772069441282,-500.0,0.00013699,2]
[406678457,1772069441292,-500.0,0.00013699,2]
[406678458,1772069441301,-500.0,0.00013699,2]
[406678459,1772069441311,-524.32496394,0.00013699,2]
[406678460,1772069441321,-500.0,0.00013699,2]
[406678461,1772069441330,-500.0,0.00013699,2]
[406678462,1772069441339,-500.0,0.00013699,2]
[406678463,1772069441349,-335.65029794,0.00013699,2]
[406678464,1772069441359,-500.0,0.00013699,2]
[406678465,1772069441367,-500.0,0.00013699,2]
[406678466,1772069441376,-500.0,0.00013699,2]
[406678467,1772069441505,-500.0,0.00013699,2]
[406678468,1772069441515,-500.0,0.00013699,2]
[406678469,1772069441525,-208.66,0.00013954,2]
[406678470,1772069441537,-2288.4601003,0.0001421,7]
[406678471,1772069441547,-800.44121468,0.00014247,2]
[406678472,1772069441556,-1000.0,0.00014247,2]
[406678473,1772069441567,-1000.0,0.00014247,2]
[406678474,1772069441579,-1000.0,0.00014247,2]
[406678475,1772069441588,-1000.0,0.00014247,2]
[406678476,1772069441598,-1000.0,0.00014247,2]
[406678477,1772069441607,-1007.67306464,0.00014247,2]
[406678478,1772069441618,-1000.0,0.00014247,2]
[406678479,1772069441629,-1000.0,0.00014247,2]
[406678480,1772069441639,-1000.0,0.00014247,2]
[406678481,1772069441649,-1008.34147468,0.00014247,2]
[406678482,1772069441659,-351.72128687,0.00014247,2]
[406678483,1772069441669,-467.67692832,0.00014247,2]
[406678484,1772069441678,-1000.0,0.00014247,2]
[406678485,1772069441691,-1000.0,0.00014247,2]
[406678486,1772069441711,-502.69399529,0.00014247,2]
[406678487,1772069441722,-1000.0,0.00014247,2]
[406678488,1772069441732,-1000.0,0.00014247,2]
[406678489,1772069441742,-992.23312849,0.00014247,2]
[406678490,1772069441752,-1000.0,0.00014247,2]
[406678491,1772069441762,-1000.0,0.00014247,2]
[406678492,1772069441771,-1000.0,0.00014247,2]
[406678493,1772069441782,-1000.0,0.00014247,2]
[406678494,1772069441792,-1000.0,0.00014247,2]
[406678495,1772069441802,-1000.0,0.00014247,2]
[406678496,1772069441811,-175.96468334,0.00014247,2]
[406678497,1772069441822,-1000.0,0.00014247,2]
[406678498,1772069441831,-1000.0,0.00014247,2]
[406678499,1772069441841,-1000.0,0.00014247,2]
[406678500,1772069441852,-1000.0,0.00014247,2]
[406678501,1772069441862,-1000.0,0.00014247,2]
[406678502,1772069441872,-1000.0,0.00014247,2]
[406678503,1772069441882,-604.2577825,0.00014247,2]
[406678504,1772069441891,-185.59048766,0.00014247,2]
[406678505,1772069441901,-1000.0,0.00014247,2]
[406678506,1772069441911,-1000.0,0.00014247,2]
[406678507,1772069441920,-500.72491405,0.00014247,2]
[406678508,1772069441930,-1000.0,0.00014247,2]
[406678509,1772069441940,-1000.0,0.00014247,2]
[406678510,1772069441950,-1000.0,0.00014247,2]
[406678511,1772069441959,-1000.0,0.00014247,2]
[406678512,1772069441969,-1000.0,0.00014247,2]
[406678513,1772069441979,-1004.88674942,0.00014247,2]
[406678514,1772069441989,-1000.0,0.00014247,2]
[406678515,1772069441999,-380.44800806,0.00014247,2]
[406678516,1772069442010,-1000.0,0.00014247,2]
[406678517,1772069442020,-502.589699,0.00014247,2]
[406678518,1772069442031,-1000.0,0.00014247,2]
[406678519,1772069442041,-1000.0,0.00014247,2]
[406678520,1772069442051,-374.88076834,0.00014247,2]
[406678521,1772069442065,-1000.0,0.00014247,2]
[406678522,1772069442075,-1002.2111982,0.00014247,2]
[406678523,1772069442085,-1002.34821316,0.00014247,2]
[406678524,1772069442094,-151.0,0.00014247,2]
[406678525,1772069442104,-8860.0,0.00014377,2]
[406678526,1772069442114,-20486.55936383,0.00014383,2]
[406678527,1772069442123,-7382.11,0.00014384,2]
[406678528,1772069442133,-180.0,0.00014399,2]
[406678529,1772069442144,-3829.31180515,0.00014586,2]
[406678530,1772069442154,-276.00043833,0.00014795,2]
[406678531,1772069442164,-1091.6833327,0.00014795,2]
[406678532,1772069442173,-1500.0,0.00014795,2]
[406678533,1772069442183,-1500.0,0.00014795,2]
[406678534,1772069442193,-1500.0,0.00014795,2]
[406678535,1772069442203,-1505.84689332,0.00014795,2]
[406678536,1772069442212,-1216.25934348,0.00014795,2]
[406678537,1772069442222,-1500.0,0.00014795,2]
[406678538,1772069442231,-1041.36883601,0.00014795,2]
[406678539,1772069442241,-1500.0,0.00014795,2]
[406678540,1772069442250,-501.0,0.0001489,2]
[406678541,1772069442264,-4998.88692849,0.00014907,2]
[406678542,1772069442274,-250.0,0.00015,2]
[406678543,1772069442286,-173.91437885,0.00015041,2]
[406678544,1772069442296,-160.0,0.00015041,2]
[406678545,1772069442307,-7382.11,0.00015068,2]
[406678546,1772069442317,-151.0,0.00015068,2]
[406678547,1772069442328,-10024.89946181,0.0001512,2]
[406678548,1772069442338,-1827.89337357,0.00015342,2]
[406678549,1772069442348,-2000.0,0.00015342,2]